[Event "FIDE WYCC Girls U14 2023"]
[Site "Montesilvano"]
[Date "2023.11.21"]
[Round "8.17"]
[White "Montano Vicente, Guadalupe"]
[Black "Rice, Leah"]
[Result "0-1"]
[ECO "D10"]
[WhiteElo "1794"]
[BlackElo "1499"]
[Annotator "NA RC"]
[PlyCount "86"]
[EventDate "2023.11.13"]
[EventType "swiss"]
[EventCountry "ITA"]
[SourceTitle "playchess.com"]
[Source "ChessBase"]
[SourceQuality "1"]
[TimeControl "40/5400+30:1800+30"]

1. d4 {[%emt 0:00:02]} d5 {[%emt 0:00:06]} 2. c4 {[%emt 0:00:12]} c6 {[%emt 0:00:27]} 3. cxd5 {[%emt 0:00:25]} cxd5 {[%emt 0:00:18]} 4. Nc3 {[%emt 0:00:08]} Nc6 {[%emt 0:02:11]} 5. Bf4 {[%emt 0:01:45]} Nf6 {[%emt 0:01:12]} 6. e3 {[%emt 0:01:21]} a6 {[%emt 0:01:27]} 7. Bd3 {[%emt 0:01:19]} Bg4 {[%emt 0:03:49]} 8. Qb3 {[%emt 0:04:16]} Nh5 {[%emt 0:14:39]} 9. Bg3 {[%emt 0:12:54]} Nxg3 {[%emt 0:10:56]} 10. hxg3 {[%emt 0:00:22]} e5 {[%emt 0:03:43]} 11. Qxd5 {[%emt 0:15:04]} exd4 {[%emt 0:02:17]} 12. Qe4+ {[%emt 0:06:04]} Be6 {[%emt 0:00:29]} 13. exd4 {[%emt 0:00:54]} Qxd4 {[%emt 0:03:45]} 14. Nge2 {[%emt 0:06:32]} Qb6 {[%emt 0:01:17]} 15. O-O {[%emt 0:07:39]} O-O-O {[%emt 0:10:18]} 16. Nf4 {[%emt 0:05:05]} Kb8 {[%emt 0:04:26]} 17. Rab1 {[%emt 0:15:08]} Bd6 {[%emt 0:02:11]} 18. Nxe6 {[%emt 0:02:23]} fxe6 {[%emt 0:00:09]} 19. Na4 {[%emt 0:07:24]} Qb4 {[%emt 0:01:30]} 20. a3 {[%emt 0:01:33]} Qxe4 {[%emt 0:06:10]} 21. Bxe4 {[%emt 0:00:07]} Nd4 {[%emt 0:00:10]} 22. Rfe1 {[%emt 0:02:00]} Ka7 {[%emt 0:02:38]} 23. Rbd1 {[%emt 0:02:48]} e5 {[%emt 0:01:51]} 24. Nc3 {[%emt 0:01:11]} Rc8 {[%emt 0:02:46]} 25. Rd3 {[%emt 0:02:01]} h6 {[%emt 0:01:43]} 26. Bd5 {[%emt 0:01:29]} Rhf8 {[%emt 0:01:39]} 27. Re4 {[%emt 0:01:54]} Rc7 {[%emt 0:00:43]} 28. Re1 {[%emt 0:01:11]} Rc5 {[%emt 0:03:48]} 29. f4 {[%emt 0:00:51]} Rcc8 {[%emt 0:01:33]} 30. fxe5 {[%emt 0:00:26]} Bc5 {[%emt 0:00:04]} 31. Kh2 {[%emt 0:00:18]} Rf5 {[%emt 0:02:37]} 32. e6 {[%emt 0:00:51]} Rh5+ {[%emt 0:00:51]} 33. Kg1 {[%emt 0:00:02]} Nf3+ {[%emt 0:00:12]} 34. Kf1 {[%emt 0:00:04]} Rh1+ {[%emt 0:00:12]} 35. Ke2 {[%emt 0:00:02]} Nxe1 {[%emt 0:00:40]} 36. Rd1 {[%emt 0:00:29]} Rg1 {[%emt 0:00:16]} 37. Rxe1 {[%emt 0:00:28]} Rxe1+ {[%emt 0:00:06]} 38. Kxe1 {[%emt 0:00:02]} Bxa3 {[%emt 0:00:18]} 39. bxa3 {[%emt 0:00:32]} Rxc3 {[%emt 0:00:05]} 40. Kd2 {[%emt 0:00:00]} Rc5 {[%emt 0:00:00]} 41. Bb3 {[%emt 0:00:25]} Rg5 {[%emt 0:01:17]} 42. Bc4 {[%emt 0:00:43]} b5 {[%emt 0:01:07]} 43. Ba2 {[%emt 0:00:38]} Kb6 {[%emt 0:00:19]} 0-1

[Event "FIDE WYCC Girls U14 2023"]
[Site "Montesilvano"]
[Date "2023.11.21"]
[Round "8.18"]
[White "Lorenz, Veronika"]
[Black "Nguyen, Thuy Linh"]
[Result "0-1"]
[ECO "B54"]
[WhiteElo "1791"]
[BlackElo "1398"]
[Annotator "NA RC"]
[PlyCount "60"]
[EventDate "2023.11.13"]
[EventType "swiss"]
[EventCountry "ITA"]
[SourceTitle "playchess.com"]
[Source "ChessBase"]
[SourceQuality "1"]
[TimeControl "40/5400+30:1800+30"]

1. e4 {[%emt 0:00:02]} c5 {[%emt 0:00:18]} 2. Nf3 {[%emt 0:00:02]} d6 {[%emt 0:00:14]} 3. d4 {[%emt 0:00:01]} cxd4 {[%emt 0:00:12]} 4. Nxd4 {[%emt 0:00:01]} Nf6 {[%emt 0:00:17]} 5. f3 {[%emt 0:00:06]} a6 {[%emt 0:00:06]} 6. c4 {[%emt 0:00:06]} e5 {[%emt 0:01:20]} 7. Nc2 {[%emt 0:02:01]} Be7 {[%emt 0:00:16]} 8. Nc3 {[%emt 0:00:09]} O-O {[%emt 0:00:35]} 9. Be3 {[%emt 0:00:04]} Be6 {[%emt 0:00:16]} 10. Be2 {[%emt 0:01:57]} Nbd7 {[%emt 0:01:01]} 11. Qd2 {[%emt 0:00:08]} Qc7 {[%emt 0:01:22]} 12. b3 {[%emt 0:00:22]} Rfc8 {[%emt 0:03:04]} 13. Rc1 {[%emt 0:09:34]} Nc5 {[%emt 0:13:46]} 14. O-O {[%emt 0:02:20]} Rab8 {[%emt 0:04:03]} 15. Rfd1 {[%emt 0:15:34]} b6 {[%emt 0:05:08]} 16. b4 {[%emt 0:03:34]} Ncd7 {[%emt 0:01:40]} 17. c5 {[%emt 0:13:21]} dxc5 {[%emt 0:08:18]} 18. Bxa6 {[%emt 0:00:12]} Rd8 {[%emt 0:02:08]} 19. Nb5 {[%emt 0:10:00]} Qc6 {[%emt 0:00:26]} 20. bxc5 {[%emt 0:08:20]} Nxc5 {[%emt 0:01:58]} 21. Nb4 {[%emt 0:06:45]} Qa8 {[%emt 0:03:28]} 22. Qc3 {[%emt 0:13:43]} Nxa6 {[%emt 0:02:52]} 23. Nc6 {[%emt 0:01:15]} Rxd1+ {[%emt 0:00:33]} 24. Rxd1 {[%emt 0:00:01]} Re8 {[%emt 0:02:06]} 25. Bxb6 {[%emt 0:06:11]} Bf8 {[%emt 0:04:39]} 26. Nd8 {[%emt 0:05:06]} Qb8 {[%emt 0:07:45]} 27. Qa5 {[%emt 0:01:13]} Qxb6+ {[%emt 0:03:35]} 28. Qxb6 {[%emt 0:00:54]} Bc5+ {[%emt 0:00:02]} 29. Kh1 {[%emt 0:00:11]} Bxb6 {[%emt 0:00:05]} 30. Nb7 {[%emt 0:01:23]} Nc5 {[%emt 0:02:52]} 0-1

[Event "FIDE WYCC Girls U14 2023"]
[Site "Montesilvano"]
[Date "2023.11.21"]
[Round "8.19"]
[White "Avetisyan, Ani"]
[Black "Namala, Dhanvi"]
[Result "1-0"]
[ECO "D31"]
[WhiteElo "1770"]
[BlackElo "1388"]
[Annotator "NA RC"]
[PlyCount "73"]
[EventDate "2023.11.13"]
[EventType "swiss"]
[EventCountry "ITA"]
[SourceTitle "playchess.com"]
[Source "ChessBase"]
[SourceQuality "1"]
[TimeControl "40/5400+30:1800+30"]

1. d4 {[%emt 0:00:03]} d5 {[%emt 0:00:02]} 2. c4 {[%emt 0:00:08]} e6 {[%emt 0:00:05]} 3. Nc3 {[%emt 0:00:16]} c6 {[%emt 0:00:11]} 4. e4 {[%emt 0:00:47]} dxe4 {[%emt 0:00:09]} 5. Nxe4 {[%emt 0:00:07]} Bb4+ {[%emt 0:00:06]} 6. Bd2 {[%emt 0:00:15]} Qxd4 {[%emt 0:00:23]} 7. Bxb4 {[%emt 0:00:18]} Qxe4+ {[%emt 0:00:09]} 8. Be2 {[%emt 0:00:05]} Na6 {[%emt 0:00:19]} 9. Bd6 {[%emt 0:00:56]} Bd7 {[%emt 0:02:20]} 10. Nf3 {[%emt 0:02:27]} Ne7 {[%emt 0:07:51]} 11. O-O {[%emt 0:04:28]} Qf5 {[%emt 0:10:42]} 12. Qb3 {[%emt 0:07:17]} b6 {[%emt 0:03:37]} 13. Rad1 {[%emt 0:09:06]} Nc8 {[%emt 0:10:10]} 14. Bg3 {[%emt 0:10:46]} Nc5 {[%emt 0:05:34]} 15. Qe3 {[%emt 0:02:15]} a5 {[%emt 0:05:24]} 16. Ne5 {[%emt 0:04:48]} Ra7 {[%emt 0:04:38]} 17. Rd4 {[%emt 0:02:08]} O-O {[%emt 0:09:08]} 18. Rfd1 {[%emt 0:00:25]} Be8 {[%emt 0:03:04]} 19. Rf4 {[%emt 0:13:50]} Qg5 {[%emt 0:04:12]} 20. Rxf7 {[%emt 0:09:18]} Qxe3 {[%emt 0:01:04]} 21. Rxf8+ {[%emt 0:00:07]} Kxf8 {[%emt 0:00:23]} 22. fxe3 {[%emt 0:00:02]} Ne7 {[%emt 0:02:11]} 23. Bf3 {[%emt 0:02:37]} Nf5 {[%emt 0:07:32]} 24. Bf4 {[%emt 0:03:18]} Ne7 {[%emt 0:04:11]} 25. Rd8 {[%emt 0:03:57]} Nb7 {[%emt 0:03:29]} 26. Rb8 {[%emt 0:00:40]} Nd6 {[%emt 0:05:41]} 27. Nxc6 {[%emt 0:02:00]} Rd7 {[%emt 0:00:55]} 28. Nxe7 {[%emt 0:02:40]} Kxe7 {[%emt 0:01:37]} 29. Bc6 Rc7 {[%emt 0:05:01]} 30. Bxe8 {[%emt 0:02:16]} Nxe8 {[%emt 0:00:52]} 31. Rxe8+ {[%emt 0:00:31]} Kxe8 {[%emt 0:00:02]} 32. Bxc7 {[%emt 0:00:06]} Kd7 {[%emt 0:00:41]} 33. Bxb6 {[%emt 0:00:07]} a4 {[%emt 0:00:19]} 34. b3 {[%emt 0:00:05]} axb3 {[%emt 0:00:04]} 35. axb3 {[%emt 0:00:11]} Kc6 {[%emt 0:00:11]} 36. Bd4 {[%emt 0:00:04]} g6 {[%emt 0:00:19]} 37. b4 {[%emt 0:00:04]} 1-0

[Event "FIDE WYCC Girls U14 2023"]
[Site "Montesilvano"]
[Date "2023.11.21"]
[Round "8.20"]
[White "Valente, Sofia"]
[Black "Romany, Joy"]
[Result "0-1"]
[ECO "D10"]
[WhiteElo "1604"]
[BlackElo "1764"]
[Annotator "NA RC"]
[PlyCount "174"]
[EventDate "2023.11.13"]
[EventType "swiss"]
[EventCountry "ITA"]
[SourceTitle "playchess.com"]
[Source "ChessBase"]
[SourceQuality "1"]
[TimeControl "40/5400+30:1800+30"]

1. d4 {[%emt 0:01:19]} d5 {[%emt 0:00:05]} 2. c4 {[%emt 0:00:11]} c6 {[%emt 0:00:02]} 3. Nc3 {[%emt 0:00:32]} dxc4 {[%emt 0:00:51]} 4. a4 {[%emt 0:00:55]} Nf6 {[%emt 0:01:44]} 5. e3 {[%emt 0:03:50]} Bf5 {[%emt 0:01:20]} 6. Bxc4 {[%emt 0:03:35]} e6 {[%emt 0:00:23]} 7. Nf3 {[%emt 0:01:35]} Nbd7 {[%emt 0:00:10]} 8. O-O {[%emt 0:01:37]} Bg6 {[%emt 0:00:25]} 9. Qe2 {[%emt 0:01:56]} Bb4 {[%emt 0:00:17]} 10. Bd2 {[%emt 0:02:04]} O-O {[%emt 0:03:25]} 11. Ne5 {[%emt 0:04:41]} c5 {[%emt 0:17:33]} 12. Nxg6 {[%emt 0:08:31]} hxg6 {[%emt 0:00:04]} 13. dxc5 {[%emt 0:04:25]} Bxc5 {[%emt 0:02:19]} 14. Rab1 {[%emt 0:02:53]} Qe7 {[%emt 0:07:05]} 15. Rfd1 {[%emt 0:04:12]} Ne5 {[%emt 0:03:59]} 16. Be1 {[%emt 0:01:35]} Nxc4 {[%emt 0:02:34]} 17. Qxc4 {[%emt 0:00:11]} Rac8 {[%emt 0:02:27]} 18. Qh4 {[%emt 0:02:01]} Rfd8 {[%emt 0:06:42]} 19. Rxd8+ {[%emt 0:02:32]} Rxd8 {[%emt 0:00:17]} 20. b4 {[%emt 0:02:03]} Bd6 {[%emt 0:02:02]} 21. Ne4 {[%emt 0:04:56]} Nxe4 {[%emt 0:05:31]} 22. Qxe4 {[%emt 0:02:04]} Bb8 {[%emt 0:02:42]} 23. f3 {[%emt 0:02:51]} Qd7 {[%emt 0:02:41]} 24. b5 {[%emt 0:02:27]} Bd6 {[%emt 0:04:39]} 25. Rc1 {[%emt 0:06:10]} Ba3 {[%emt 0:03:23]} 26. Rb1 {[%emt 0:01:55]} Bc5 {[%emt 0:00:41]} 27. Bf2 {[%emt 0:11:36]} b6 {[%emt 0:05:52]} 28. Qc2 {[%emt 0:02:14]} Qd2 {[%emt 0:04:10]} 29. Qxd2 {[%emt 0:02:28]} Rxd2 {[%emt 0:00:02]} 30. Kf1 {[%emt 0:01:52]} Ra2 {[%emt 0:00:31]} 31. Rb3 {[%emt 0:03:39]} Rxa4 {[%emt 0:00:29]} 32. Rb2 {[%emt 0:01:36]} Kf8 {[%emt 0:01:24]} 33. Ke2 {[%emt 0:01:33]} Ke7 {[%emt 0:01:02]} 34. Bg3 {[%emt 0:00:52]} Bd6 {[%emt 0:03:07]} 35. Rd2 {[%emt 0:01:24]} Bxg3 {[%emt 0:00:28]} 36. hxg3 {[%emt 0:00:08]} Ra5 {[%emt 0:00:08]} 37. Rb2 {[%emt 0:00:43]} Kd6 {[%emt 0:00:50]} 38. Rd2+ {[%emt 0:01:00]} Kc7 {[%emt 0:03:04]} 39. Rb2 {[%emt 0:00:40]} Ra3 {[%emt 0:00:53]} 40. e4 {[%emt 0:00:00]} Rc3 {[%emt 0:00:00]} 41. Kd2 {[%emt 0:01:26]} Rc5 {[%emt 0:02:45]} 42. Kd3 {[%emt 0:00:20]} e5 {[%emt 0:00:24]} 43. f4 {[%emt 0:01:12]} f6 {[%emt 0:01:54]} 44. Ke2 {[%emt 0:01:39]} Rc3 {[%emt 0:00:44]} 45. Kf2 {[%emt 0:00:25]} Kb7 {[%emt 0:02:06]} 46. Rd2 {[%emt 0:00:33]} Kc7 {[%emt 0:00:22]} 47. Ra2 {[%emt 0:00:23]} Kb7 {[%emt 0:00:57]} 48. Rd2 {[%emt 0:00:10]} exf4 {[%emt 0:03:33]} 49. gxf4 {[%emt 0:00:13]} Rc5 {[%emt 0:00:08]} 50. Rd7+ {[%emt 0:05:03]} Rc7 {[%emt 0:00:31]} 51. Rd5 {[%emt 0:03:51]} a6 {[%emt 0:08:08]} 52. bxa6+ {[%emt 0:00:29]} Kxa6 {[%emt 0:00:01]} 53. e5 {[%emt 0:02:19]} Kb7 {[%emt 0:06:13]} 54. Ke3 {[%emt 0:02:57]} Kc6 {[%emt 0:00:57]} 55. Rd1 {[%emt 0:01:32]} Rd7 {[%emt 0:01:02]} 56. Rc1+ {[%emt 0:00:08]} Kd5 {[%emt 0:00:38]} 57. Rd1+ {[%emt 0:00:52]} Ke6 {[%emt 0:00:09]} 58. Rb1 {[%emt 0:00:20]} Rb7 {[%emt 0:02:50]} 59. Ke4 {[%emt 0:02:44]} b5 {[%emt 0:00:38]} 60. Rb4 {[%emt 0:01:08]} fxe5 {[%emt 0:01:15]} 61. fxe5 {[%emt 0:00:34]} g5 {[%emt 0:00:14]} 62. g4 {[%emt 0:03:53]} Rb8 {[%emt 0:00:28]} 63. Rd4 {[%emt 0:03:33]} b4 {[%emt 0:01:34]} 64. Rd6+ {[%emt 0:00:21]} Ke7 {[%emt 0:01:31]} 65. Kf5 {[%emt 0:01:20]} b3 {[%emt 0:01:03]} 66. Rd1 {[%emt 0:00:23]} b2 {[%emt 0:00:15]} 67. Rb1 {[%emt 0:00:06]} Rb7 {[%emt 0:00:41]} 68. Kxg5 {[%emt 0:01:05]} Ke6 {[%emt 0:00:08]} 69. Kf4 {[%emt 0:01:04]} Rb4+ {[%emt 0:00:05]} 70. Ke3 {[%emt 0:01:20]} Kxe5 {[%emt 0:00:06]} 71. Kd3 {[%emt 0:01:30]} Kf4 {[%emt 0:00:07]} 72. Kc2 {[%emt 0:00:40]} Kxg4 {[%emt 0:01:24]} 73. Rg1+ {[%emt 0:00:20]} Kf4 {[%emt 0:00:09]} 74. Kb1 {[%emt 0:00:17]} g5 {[%emt 0:00:10]} 75. Rf1+ {[%emt 0:00:17]} Kg4 {[%emt 0:00:07]} 76. Rg1+ {[%emt 0:00:22]} Kf4 {[%emt 0:00:11]} 77. Rf1+ {[%emt 0:00:16]} Ke3 {[%emt 0:00:06]} 78. Rf8 {[%emt 0:01:07]} g4 {[%emt 0:00:12]} 79. Rg8 {[%emt 0:00:45]} Kf2 {[%emt 0:00:36]} 80. Rf8+ {[%emt 0:00:19]} Kg2 {[%emt 0:00:04]} 81. Rg8 {[%emt 0:00:20]} g3 {[%emt 0:00:09]} 82. Rg7 {[%emt 0:00:31]} Kf2 {[%emt 0:00:07]} 83. Rf7+ {[%emt 0:00:10]} Kg1 {[%emt 0:00:11]} 84. Rg7 {[%emt 0:00:13]} g2 {[%emt 0:00:19]} 85. Rg8 {[%emt 0:00:21]} Kf2 {[%emt 0:00:25]} 86. Rf8+ {[%emt 0:00:13]} Kg3 {[%emt 0:00:07]} 87. Rg8+ {[%emt 0:00:20]} Rg4 0-1

[Event "FIDE WYCC Girls U14 2023"]
[Site "Montesilvano"]
[Date "2023.11.21"]
[Round "8.21"]
[White "Cutiyog, Jirah Floravie"]
[Black "Derlich, Sarah Sima"]
[Result "0-1"]
[ECO "B12"]
[WhiteElo "1305"]
[BlackElo "1745"]
[Annotator "NA RC"]
[PlyCount "62"]
[EventDate "2023.11.13"]
[EventType "swiss"]
[EventCountry "ITA"]
[SourceTitle "playchess.com"]
[Source "ChessBase"]
[SourceQuality "1"]
[TimeControl "40/5400+30:1800+30"]

1. e4 {[%emt 0:00:08]} c6 {[%emt 0:00:05]} 2. d4 {[%emt 0:00:10]} d5 {[%emt 0:00:06]} 3. e5 {[%emt 0:00:05]} c5 {[%emt 0:00:06]} 4. dxc5 {[%emt 0:00:08]} e6 {[%emt 0:00:07]} 5. b4 {[%emt 0:00:15]} a5 {[%emt 0:00:19]} 6. c3 {[%emt 0:00:32]} axb4 {[%emt 0:01:04]} 7. cxb4 {[%emt 0:00:17]} b6 {[%emt 0:00:31]} 8. Bb5+ {[%emt 0:15:40]} Bd7 {[%emt 0:02:34]} 9. Bxd7+ {[%emt 0:03:02]} Nxd7 {[%emt 0:01:17]} 10. Nf3 {[%emt 0:01:03]} bxc5 {[%emt 0:02:28]} 11. bxc5 {[%emt 0:00:23]} Bxc5 {[%emt 0:00:35]} 12. O-O {[%emt 0:00:15]} Ne7 {[%emt 0:01:10]} 13. Qe2 {[%emt 0:07:44]} Nf5 {[%emt 0:03:22]} 14. Nbd2 {[%emt 0:05:34]} O-O {[%emt 0:04:04]} 15. Nb3 {[%emt 0:05:32]} Qc7 {[%emt 0:10:33]} 16. g4 {[%emt 0:08:29]} Ne7 {[%emt 0:06:06]} 17. Be3 {[%emt 0:01:05]} Bxe3 {[%emt 0:03:12]} 18. Qxe3 {[%emt 0:00:26]} Ng6 {[%emt 0:04:23]} 19. Rfc1 {[%emt 0:03:19]} Qb8 {[%emt 0:03:06]} 20. Re1 {[%emt 0:16:07]} Rc8 {[%emt 0:05:14]} 21. Nbd4 {[%emt 0:04:00]} Rc4 {[%emt 0:04:09]} 22. Rab1 {[%emt 0:03:27]} Qc7 {[%emt 0:01:34]} 23. Rb2 {[%emt 0:05:41]} Ndxe5 {[%emt 0:06:06]} 24. Nxe5 {[%emt 0:05:23]} Qxe5 {[%emt 0:00:23]} 25. Reb1 {[%emt 0:03:01]} Qxd4 {[%emt 0:07:33]} 26. Rb8+ {[%emt 0:00:55]} Rxb8 {[%emt 0:00:06]} 27. Rxb8+ {[%emt 0:00:06]} Nf8 {[%emt 0:00:04]} 28. Qa3 {[%emt 0:00:34]} Qd1+ {[%emt 0:09:36]} 29. Kg2 {[%emt 0:00:47]} Rxg4+ {[%emt 0:00:05]} 30. Kh3 {[%emt 0:00:27]} h5 {[%emt 0:00:39]} 31. Rxf8+ {[%emt 0:04:27]} Kh7 {[%emt 0:00:06]} 0-1

[Event "FIDE WYCC Girls U14 2023"]
[Site "Montesilvano"]
[Date "2023.11.21"]
[Round "8.22"]
[White "Petergova, Stella"]
[Black "Stefan, Iulia-Cristiana"]
[Result "1/2-1/2"]
[ECO "C44"]
[WhiteElo "1191"]
[BlackElo "1748"]
[Annotator "NA RC"]
[PlyCount "77"]
[EventDate "2023.11.13"]
[EventType "swiss"]
[EventCountry "ITA"]
[SourceTitle "playchess.com"]
[Source "ChessBase"]
[SourceQuality "1"]
[TimeControl "40/5400+30:1800+30"]

1. e4 {[%emt 0:00:03]} e5 {[%emt 0:00:04]} 2. Nf3 {[%emt 0:00:03]} Nc6 {[%emt 0:00:05]} 3. d4 {[%emt 0:00:04]} exd4 {[%emt 0:00:04]} 4. Nxd4 {[%emt 0:00:07]} Bb4+ {[%emt 0:00:06]} 5. c3 {[%emt 0:00:22]} Bc5 {[%emt 0:00:05]} 6. Be3 {[%emt 0:03:55]} Bb6 {[%emt 0:00:05]} 7. Nxc6 {[%emt 0:04:32]} bxc6 {[%emt 0:00:14]} 8. Qf3 {[%emt 0:00:34]} Qe7 {[%emt 0:09:27]} 9. Bd3 {[%emt 0:01:07]} Bxe3 {[%emt 0:10:35]} 10. Qxe3 {[%emt 0:01:53]} Nf6 {[%emt 0:01:04]} 11. O-O {[%emt 0:01:03]} d6 {[%emt 0:04:37]} 12. Re1 {[%emt 0:02:16]} Ng4 {[%emt 0:06:25]} 13. Qg3 {[%emt 0:04:54]} O-O {[%emt 0:01:43]} 14. Nd2 {[%emt 0:01:20]} Ne5 {[%emt 0:02:25]} 15. Bf1 {[%emt 0:03:31]} Rb8 {[%emt 0:03:13]} 16. b3 {[%emt 0:01:06]} c5 {[%emt 0:10:10]} 17. Nc4 {[%emt 0:01:55]} Nxc4 {[%emt 0:03:50]} 18. Bxc4 {[%emt 0:00:34]} Be6 {[%emt 0:01:30]} 19. Bd5 {[%emt 0:04:17]} Qd7 {[%emt 0:09:45]} 20. c4 {[%emt 0:06:24]} Rfe8 {[%emt 0:03:34]} 21. Bxe6 {[%emt 0:02:13]} Qxe6 {[%emt 0:03:22]} 22. f3 {[%emt 0:01:22]} a5 {[%emt 0:00:58]} 23. Qf2 {[%emt 0:02:14]} a4 {[%emt 0:01:40]} 24. Qc2 {[%emt 0:01:39]} Rb4 {[%emt 0:03:40]} 25. Reb1 {[%emt 0:02:06]} Reb8 {[%emt 0:05:29]} 26. bxa4 {[%emt 0:01:52]} Qe5 {[%emt 0:01:26]} 27. a3 {[%emt 0:03:08]} Qd4+ {[%emt 0:00:19]} 28. Kf1 {[%emt 0:05:10]} Rb2 {[%emt 0:02:38]} 29. Rxb2 {[%emt 0:01:21]} Rxb2 {[%emt 0:00:02]} 30. Rb1 {[%emt 0:00:13]} Rxb1+ {[%emt 0:01:41]} 31. Qxb1 {[%emt 0:00:09]} Qxc4+ {[%emt 0:00:07]} 32. Kf2 {[%emt 0:00:29]} g6 {[%emt 0:00:47]} 33. Qb8+ {[%emt 0:00:24]} Kg7 {[%emt 0:00:08]} 34. Qxc7 {[%emt 0:00:33]} Qd4+ {[%emt 0:00:16]} 35. Kg3 {[%emt 0:00:49]} Qe5+ {[%emt 0:00:48]} 36. Kf2 {[%emt 0:01:14]} Qd4+ {[%emt 0:00:40]} 37. Kg3 {[%emt 0:00:23]} Qxa4 {[%emt 0:00:38]} 38. Qxd6 {[%emt 0:00:18]} Qxa3 {[%emt 0:00:26]} 39. Qe5+ {[%emt 0:00:11]} 1/2-1/2

[Event "FIDE WYCC Girls U14 2023"]
[Site "Montesilvano"]
[Date "2023.11.21"]
[Round "8.23"]
[White "Aswinika Mani R"]
[Black "Caku, Kler"]
[Result "1-0"]
[ECO "C54"]
[WhiteElo "1472"]
[BlackElo "1740"]
[Annotator "NA RC"]
[PlyCount "69"]
[EventDate "2023.11.13"]
[EventType "swiss"]
[EventCountry "ITA"]
[SourceTitle "playchess.com"]
[Source "ChessBase"]
[SourceQuality "1"]
[TimeControl "40/5400+30:1800+30"]

1. e4 {[%emt 0:00:07]} e5 {[%emt 0:00:07]} 2. Nf3 {[%emt 0:00:14]} Nc6 {[%emt 0:00:52]} 3. Bc4 {[%emt 0:00:07]} Bc5 {[%emt 0:00:15]} 4. c3 {[%emt 0:00:39]} Nf6 {[%emt 0:00:28]} 5. d3 {[%emt 0:00:07]} h6 {[%emt 0:00:15]} 6. b4 {[%emt 0:07:24]} Bb6 {[%emt 0:00:07]} 7. a4 {[%emt 0:04:54]} a6 {[%emt 0:00:17]} 8. a5 {[%emt 0:06:06]} Ba7 {[%emt 0:00:10]} 9. O-O {[%emt 0:01:37]} d6 {[%emt 0:00:10]} 10. Be3 {[%emt 0:04:10]} O-O {[%emt 0:00:38]} 11. Bxa7 {[%emt 0:02:41]} Rxa7 {[%emt 0:01:17]} 12. h3 {[%emt 0:02:18]} Ne7 {[%emt 0:01:31]} 13. Re1 {[%emt 0:04:06]} Ng6 {[%emt 0:01:48]} 14. d4 {[%emt 0:03:57]} Qe7 {[%emt 0:00:45]} 15. Nbd2 {[%emt 0:01:45]} Nf4 {[%emt 0:02:24]} 16. Nf1 {[%emt 0:04:46]} Kh8 {[%emt 0:14:00]} 17. Ng3 {[%emt 0:05:48]} Rg8 {[%emt 0:05:11]} 18. Nf5 {[%emt 0:14:20]} Bxf5 {[%emt 0:05:04]} 19. exf5 {[%emt 0:00:02]} e4 {[%emt 0:00:39]} 20. g3 {[%emt 0:01:06]} Nxh3+ {[%emt 0:03:42]} 21. Kg2 {[%emt 0:00:30]} Ng4 {[%emt 0:22:40]} 22. Ne5 {[%emt 0:06:16]} dxe5 {[%emt 0:10:18]} 23. Qxg4 {[%emt 0:01:27]} Ng5 {[%emt 0:00:04]} 24. dxe5 {[%emt 0:00:34]} Qxe5 {[%emt 0:02:04]} 25. Qxg5 {[%emt 0:01:42]} Qxc3 {[%emt 0:02:01]} 26. Qe3 {[%emt 0:01:46]} Qxe3 {[%emt 0:05:04]} 27. Rxe3 {[%emt 0:00:04]} Re8 {[%emt 0:00:16]} 28. Bxf7 {[%emt 0:00:31]} Re5 {[%emt 0:00:20]} 29. Bg6 {[%emt 0:00:38]} Ra8 {[%emt 0:00:08]} 30. Rae1 {[%emt 0:00:18]} b6 {[%emt 0:01:03]} 31. Rxe4 {[%emt 0:00:22]} Rxe4 {[%emt 0:00:16]} 32. Rxe4 {[%emt 0:00:02]} Kg8 {[%emt 0:00:43]} 33. Re8+ {[%emt 0:01:06]} Rxe8 {[%emt 0:00:06]} 34. Bxe8 {[%emt 0:00:03]} Kf8 {[%emt 0:00:08]} 35. b5 {[%emt 0:01:03]} 1-0

[Event "FIDE WYCC Girls U14 2023"]
[Site "Montesilvano"]
[Date "2023.11.21"]
[Round "8.24"]
[White "Arzur, Maia"]
[Black "Kazhiakhmetova, Yerkenaz"]
[Result "1/2-1/2"]
[ECO "B03"]
[WhiteElo "1997"]
[BlackElo "1218"]
[Annotator "NA RC"]
[PlyCount "106"]
[EventDate "2023.11.13"]
[EventType "swiss"]
[EventCountry "ITA"]
[SourceTitle "playchess.com"]
[Source "ChessBase"]
[SourceQuality "1"]
[TimeControl "40/5400+30:1800+30"]

1. e4 {[%emt 0:00:03]} Nf6 {[%emt 0:00:29]} 2. e5 {[%emt 0:00:11]} Nd5 {[%emt 0:00:03]} 3. d4 {[%emt 0:00:10]} d6 {[%emt 0:00:03]} 4. c4 {[%emt 0:00:10]} Nb6 {[%emt 0:00:03]} 5. exd6 {[%emt 0:00:10]} exd6 {[%emt 0:00:35]} 6. h3 {[%emt 0:00:36]} Be7 {[%emt 0:01:24]} 7. Nf3 {[%emt 0:01:42]} Bf5 {[%emt 0:00:55]} 8. Be2 {[%emt 0:02:47]} O-O {[%emt 0:01:23]} 9. O-O {[%emt 0:01:13]} Nc6 {[%emt 0:00:27]} 10. Nc3 {[%emt 0:01:52]} Bf6 {[%emt 0:03:41]} 11. b3 {[%emt 0:06:21]} h6 {[%emt 0:10:50]} 12. Bf4 {[%emt 0:05:34]} Re8 {[%emt 0:03:52]} 13. Rc1 {[%emt 0:04:27]} a6 {[%emt 0:02:13]} 14. a3 {[%emt 0:08:42]} Be4 {[%emt 0:18:41]} 15. Nxe4 {[%emt 0:06:55]} Rxe4 {[%emt 0:00:59]} 16. Be3 {[%emt 0:00:09]} Qe8 {[%emt 0:02:07]} 17. Bd3 {[%emt 0:10:19]} Rxe3 {[%emt 0:07:35]} 18. fxe3 {[%emt 0:00:09]} Qxe3+ {[%emt 0:00:04]} 19. Kh1 {[%emt 0:00:04]} Nxd4 {[%emt 0:00:09]} 20. Re1 {[%emt 0:11:56]} Qf2 {[%emt 0:00:40]} 21. Nxd4 {[%emt 0:03:58]} Qxd4 {[%emt 0:00:39]} 22. Be4 {[%emt 0:01:41]} c6 {[%emt 0:11:19]} 23. Qxd4 {[%emt 0:03:04]} Bxd4 {[%emt 0:00:22]} 24. Rcd1 {[%emt 0:00:02]} Bf2 {[%emt 0:05:32]} 25. Re2 {[%emt 0:00:24]} Bg3 {[%emt 0:00:23]} 26. Rd3 {[%emt 0:00:35]} Be5 {[%emt 0:02:25]} 27. c5 {[%emt 0:01:19]} Nc8 {[%emt 0:05:58]} 28. Bf5 {[%emt 0:06:49]} f6 {[%emt 0:00:39]} 29. Bxc8 {[%emt 0:00:52]} Rxc8 {[%emt 0:00:05]} 30. cxd6 {[%emt 0:00:02]} Rd8 {[%emt 0:00:07]} 31. d7 {[%emt 0:01:01]} Kf7 {[%emt 0:00:07]} 32. Kg1 {[%emt 0:00:28]} Ke7 {[%emt 0:00:38]} 33. Red2 {[%emt 0:01:04]} c5 {[%emt 0:00:57]} 34. Re2 {[%emt 0:04:12]} Rxd7 {[%emt 0:01:24]} 35. Rxd7+ {[%emt 0:00:11]} Kxd7 {[%emt 0:00:04]} 36. Kf2 {[%emt 0:00:06]} b5 {[%emt 0:00:47]} 37. Rc2 {[%emt 0:00:43]} a5 {[%emt 0:01:16]} 38. Ke3 {[%emt 0:00:24]} Bd4+ {[%emt 0:01:39]} 39. Kd3 {[%emt 0:00:27]} Kd6 {[%emt 0:02:26]} 40. Ke4 {[%emt 0:00:00]} f5+ {[%emt 0:00:00]} 41. Kxf5 {[%emt 0:11:20]} Kd5 {[%emt 0:02:22]} 42. Kf4 {[%emt 0:03:24]} c4 {[%emt 0:00:05]} 43. bxc4+ {[%emt 0:00:40]} bxc4 {[%emt 0:00:04]} 44. Kf3 {[%emt 0:00:37]} c3 {[%emt 0:00:07]} 45. Ke2 {[%emt 0:02:49]} Kc4 {[%emt 0:00:10]} 46. a4 {[%emt 0:00:20]} Kb3 {[%emt 0:00:53]} 47. Kd3 {[%emt 0:00:05]} Bf6 {[%emt 0:00:47]} 48. g4 {[%emt 0:00:55]} Kxa4 {[%emt 0:02:24]} 49. Kc4 {[%emt 0:00:04]} Ka3 {[%emt 0:00:04]} 50. Re2 {[%emt 0:00:50]} a4 {[%emt 0:00:49]} 51. Rc2 {[%emt 0:03:07]} Be5 {[%emt 0:02:29]} 52. Re2 {[%emt 0:00:49]} Bf6 {[%emt 0:00:59]} 53. Rc2 {[%emt 0:00:20]} Be5 {[%emt 0:00:06]} 1/2-1/2